[Event "NJSK 2023 Jeugd A"]
[Site "Almelo, Netherlands"]
[Date "2023.05.02"]
[Round "3.6"]
[White "Moskalets, Sofiia"]
[Black "Goudriaan, Rafael"]
[Result "1-0"]
[TimeControl "90min/40moves + 30min + 30sec/move"]
[WhiteElo "1722"]
[BlackElo "1992"]

1. d4 {[%clk 01:30:56]} {[%emt 00:00:04]} Nf6 {[%clk 01:30:46]} {[%emt
00:00:13]} 2. Nc3 {[%clk 01:31:18]} {[%emt 00:00:10]} d5 {[%clk 01:31:07]}
{[%emt 00:00:09]} 3. Bf4 {[%clk 01:31:41]} {[%emt 00:00:07]} a6 {[%clk
01:31:12]} {[%emt 00:00:25]} 4. e3 {[%clk 01:31:51]} {[%emt 00:00:19]} h6
{[%clk 01:31:42]} {[%emt 00:00:01]} 5. h3 {[%clk 01:31:12]} {[%emt 00:01:08]}
e6 {[%clk 01:29:12]} {[%emt 00:03:00]} 6. a3 {[%clk 01:28:22]} {[%emt
00:03:20]} Bd6 {[%clk 01:29:26]} {[%emt 00:00:15]} 7. Nf3 {[%clk 01:24:54]}
{[%emt 00:03:58]} c5 {[%clk 01:18:02]} {[%emt 00:11:55]} 8. Bxd6 {[%clk
01:18:08]} {[%emt 00:07:16]} Qxd6 {[%clk 01:18:31]} 9. Ne5 {[%clk 01:17:14]}
{[%emt 00:01:23]} Nc6 {[%clk 01:17:35]} {[%emt 00:01:27]} 10. f4 {[%clk
01:11:02]} {[%emt 00:06:42]} g5 {[%clk 01:14:10]} {[%emt 00:03:54]} 11. g3
{[%clk 01:03:11]} {[%emt 00:08:21]} Ne7 {[%clk 01:09:11]} {[%emt 00:05:28]} 12.
Qf3 {[%clk 00:57:19]} {[%emt 00:06:23]} Nd7 {[%clk 01:03:56]} {[%emt 00:05:45]}
13. Be2 {[%clk 00:53:19]} {[%emt 00:04:30]} Nf5 {[%clk 00:57:45]} {[%emt
00:06:42]} 14. O-O-O {[%clk 00:51:47]} {[%emt 00:02:02]} Nxe5 {[%clk 00:43:11]}
{[%emt 00:15:04]} 15. fxe5 {[%clk 00:43:52]} {[%emt 00:08:25]} Qe7 {[%clk
00:40:36]} {[%emt 00:03:05]} 16. Na4 {[%clk 00:38:29]} {[%emt 00:05:53]} cxd4
{[%clk 00:28:04]} {[%emt 00:13:02]} 17. exd4 {[%clk 00:38:51]} {[%emt
00:00:08]} Rb8 {[%clk 00:26:47]} {[%emt 00:01:47]} 18. Qf2 {[%clk 00:27:47]}
{[%emt 00:11:33]} b6 {[%clk 00:25:45]} {[%emt 00:01:33]} 19. Bd3 {[%clk
00:26:55]} {[%emt 00:01:22]} Ng7 {[%clk 00:20:14]} {[%emt 00:06:01]} 20. g4
{[%clk 00:22:37]} {[%emt 00:04:48]} Bd7 {[%clk 00:20:33]} {[%emt 00:00:11]} 21.
Nc3 {[%clk 00:22:48]} {[%emt 00:00:18]} b5 {[%clk 00:20:55]} {[%emt 00:00:09]}
22. Qf6 {[%clk 00:21:29]} {[%emt 00:01:49]} Kf8 {[%clk 00:20:26]} {[%emt
00:00:57]} 23. h4 {[%clk 00:17:55]} {[%emt 00:04:05]} gxh4 {[%clk 00:18:55]}
{[%emt 00:02:01]} 24. Rxh4 {[%clk 00:17:54]} {[%emt 00:00:31]} Qxf6 {[%clk
00:14:54]} {[%emt 00:04:32]} 25. exf6 {[%clk 00:18:19]} {[%emt 00:00:04]} Ne8
{[%clk 00:15:14]} {[%emt 00:00:11]} 26. g5 {[%clk 00:15:57]} {[%emt 00:02:52]}
Rg8 {[%clk 00:15:08]} {[%emt 00:00:35]} 27. gxh6 {[%clk 00:14:30]} {[%emt
00:01:57]} Nxf6 {[%clk 00:15:36]} {[%emt 00:00:02]} 28. Rf1 {[%clk 00:10:22]}
{[%emt 00:04:39]} Ke7 {[%clk 00:15:38]} {[%emt 00:00:28]} 29. Rhf4 {[%clk
00:10:37]} {[%emt 00:00:15]} Nh5 {[%clk 00:14:54]} {[%emt 00:01:13]} 30. Rxf7+
{[%clk 00:10:51]} {[%emt 00:00:17]} Kd6 {[%clk 00:15:22]} {[%emt 00:00:01]} 31.
Ne2 {[%clk 00:09:00]} {[%emt 00:02:21]} Rh8 {[%clk 00:11:20]} {[%emt 00:04:33]}
32. h7 {[%clk 00:09:06]} {[%emt 00:00:24]} b4 {[%clk 00:07:35]} {[%emt
00:04:15]} 33. axb4 {[%clk 00:08:11]} {[%emt 00:01:25]} Ra8 {[%clk 00:05:03]}
{[%emt 00:03:01]} 34. c3 {[%clk 00:06:13]} {[%emt 00:02:29]} Be8 {[%clk
00:03:38]} {[%emt 00:01:56]} 35. Rf8 {[%clk 00:05:30]} {[%emt 00:01:11]} Bc6
{[%clk 00:04:00]} {[%emt 00:00:08]} 36. Rxa8 {[%clk 00:04:50]} {[%emt
00:01:11]} Bxa8 {[%clk 00:04:29]} {[%emt 00:00:02]} 37. Rf7 {[%clk 00:04:22]}
{[%emt 00:00:57]} Bc6 {[%clk 00:03:16]} {[%emt 00:01:43]} 38. Kd2 {[%clk
00:04:06]} {[%emt 00:00:46]} Bd7 {[%clk 00:02:24]} {[%emt 00:01:21]} 39. Ke3
{[%clk 00:03:19]} {[%emt 00:01:17]} e5 {[%clk 00:02:12]} {[%emt 00:00:42]} 40.
dxe5+ {[%clk 00:02:15]} {[%emt 00:01:34]} Ke6 {[%clk 00:02:41]} 41. Bg6 {[%clk
00:01:34]} {[%emt 00:01:11]} Be8 {[%clk 00:01:43]} {[%emt 00:01:28]} 42. Nd4+
{[%clk 00:01:51]} {[%emt 00:00:14]} Kxe5 {[%clk 00:02:11]} {[%emt 00:00:02]} 43.
Re7+ {[%clk 00:02:01]} {[%emt 00:00:20]} 1-0

[Event "NJSK 2023 Jeugd A"]
[Site "Almelo, Netherlands"]
[Date "2023.05.02"]
[Round "3.7"]
[White "Groen, Jari"]
[Black "Bon, Gijs"]
[Result "1-0"]
[TimeControl "90min/40moves + 30min + 30sec/move"]
[WhiteElo "2028"]
[BlackElo "1805"]

1. e4 {[%clk 01:30:34]} {[%emt 00:00:25]} c6 {[%clk 01:30:42]} {[%emt
00:00:18]} 2. d4 {[%clk 01:30:41]} {[%emt 00:00:23]} d5 {[%clk 01:31:10]}
{[%emt 00:00:03]} 3. e5 {[%clk 01:30:49]} {[%emt 00:00:22]} Bf5 {[%clk
01:31:33]} {[%emt 00:00:06]} 4. Nf3 {[%clk 01:30:48]} {[%emt 00:00:32]} e6
{[%clk 01:31:08]} {[%emt 00:00:55]} 5. Be2 {[%clk 01:30:40]} {[%emt 00:00:38]}
c5 {[%clk 01:31:22]} {[%emt 00:00:16]} 6. Be3 {[%clk 01:30:05]} {[%emt
00:01:05]} Qb6 {[%clk 01:30:37]} {[%emt 00:01:15]} 7. Nc3 {[%clk 01:29:37]}
{[%emt 00:00:58]} Qxb2 {[%clk 01:24:48]} {[%emt 00:06:19]} 8. Qb1 {[%clk
01:28:19]} {[%emt 00:01:48]} Qxb1+ {[%clk 01:24:54]} {[%emt 00:00:24]} 9. Rxb1
{[%clk 01:28:39]} {[%emt 00:00:09]} b6 {[%clk 01:24:28]} {[%emt 00:00:56]} 10.
dxc5 {[%clk 01:27:30]} {[%emt 00:01:40]} bxc5 {[%clk 01:21:05]} {[%emt
00:03:53]} 11. Rb7 {[%clk 01:26:54]} {[%emt 00:01:06]} d4 {[%clk 01:04:28]}
{[%emt 00:17:07]} 12. Bxd4 {[%clk 01:27:00]} {[%emt 00:00:23]} cxd4 {[%clk
01:04:22]} {[%emt 00:00:36]} 13. Nxd4 {[%clk 01:27:22]} {[%emt 00:00:08]} Bc5
{[%clk 00:43:51]} {[%emt 00:21:02]} 14. Nxf5 {[%clk 01:11:07]} {[%emt
00:16:45]} exf5 {[%clk 00:44:08]} {[%emt 00:00:12]} 15. Nd5 {[%clk 01:10:51]}
{[%emt 00:00:47]} Bb6 {[%clk 00:41:16]} {[%emt 00:03:22]} 16. Rxb6 {[%clk
01:07:27]} {[%emt 00:03:54]} axb6 {[%clk 00:37:10]} {[%emt 00:04:36]} 17. Nc7+
{[%clk 01:07:42]} {[%emt 00:00:14]} Ke7 {[%clk 00:36:02]} {[%emt 00:01:38]} 18.
Nxa8 {[%clk 01:08:01]} {[%emt 00:00:12]} Nd7 {[%clk 00:36:20]} {[%emt
00:00:11]} 19. Kd2 {[%clk 00:45:54]} {[%emt 00:22:37]} Nh6 {[%clk 00:34:56]}
{[%emt 00:01:54]} 20. Nc7 {[%clk 00:40:43]} {[%emt 00:05:42]} Rc8 {[%clk
00:34:58]} {[%emt 00:00:28]} 21. Nd5+ {[%clk 00:37:55]} {[%emt 00:03:17]} Ke6
{[%clk 00:35:02]} {[%emt 00:00:26]} 22. c4 {[%clk 00:33:19]} {[%emt 00:05:06]}
Kxe5 {[%clk 00:26:38]} {[%emt 00:08:54]} 23. Rb1 {[%clk 00:29:03]} {[%emt
00:04:47]} Rb8 {[%clk 00:18:53]} {[%emt 00:08:14]} 24. Rb5 {[%clk 00:27:02]}
{[%emt 00:02:31]} Kd6 {[%clk 00:18:58]} {[%emt 00:00:25]} 25. h3 {[%clk
00:22:57]} {[%emt 00:04:36]} Ng8 {[%clk 00:18:34]} {[%emt 00:00:54]} 26. Kc3
{[%clk 00:19:40]} {[%emt 00:03:46]} g6 {[%clk 00:17:05]} {[%emt 00:01:58]} 27.
a4 {[%clk 00:17:02]} {[%emt 00:03:09]} Ne7 {[%clk 00:16:41]} {[%emt 00:00:54]}
28. Nxb6 {[%clk 00:10:53]} {[%emt 00:06:40]} Nxb6 {[%clk 00:11:54]} {[%emt
00:05:17]} 29. c5+ {[%clk 00:11:17]} {[%emt 00:00:06]} Kc7 {[%clk 00:11:27]}
{[%emt 00:00:56]} 30. cxb6+ {[%clk 00:11:22]} {[%emt 00:00:25]} Rxb6 {[%clk
00:11:44]} {[%emt 00:00:14]} 31. Bf3 {[%clk 00:05:27]} {[%emt 00:06:24]} Rxb5
{[%clk 00:10:29]} {[%emt 00:01:46]} 32. axb5 {[%clk 00:05:52]} {[%emt
00:00:04]} Nc8 {[%clk 00:06:45]} {[%emt 00:04:14]} 33. Kd4 {[%clk 00:04:01]}
{[%emt 00:02:21]} Kd6 {[%clk 00:07:09]} {[%emt 00:00:07]} 34. Bd5 {[%clk
00:03:45]} {[%emt 00:00:46]} f6 {[%clk 00:07:24]} {[%emt 00:00:15]} 35. Bg8
{[%clk 00:02:38]} {[%emt 00:01:37]} h6 {[%clk 00:07:28]} {[%emt 00:00:25]} 36.
Bf7 {[%clk 00:01:39]} {[%emt 00:01:29]} g5 {[%clk 00:02:24]} {[%emt 00:05:35]}
37. g3 {[%clk 00:00:55]} {[%emt 00:01:14]} Ne7 {[%clk 00:01:38]} {[%emt
00:01:15]} 38. Bc4 {[%clk 00:00:50]} {[%emt 00:00:35]} h5 {[%clk 00:00:32]}
{[%emt 00:01:37]} 39. Bd3 {[%clk 00:00:42]} {[%emt 00:00:38]} h4 {[%clk
00:00:33]} {[%emt 00:00:28]} 40. gxh4 {[%clk 00:00:50]} {[%emt 00:00:23]} gxh4
{[%clk 00:00:57]} {[%emt 00:00:06]} 41. Kc4 {[%clk 00:26:04]} {[%emt 00:05:15]}
f4 {[%clk 00:22:24]} {[%emt 00:09:03]} 42. Kd4 {[%clk 00:24:38]} {[%emt
00:01:57]} Nd5 {[%clk 00:14:53]} {[%emt 00:08:00]} 43. Bc4 {[%emt 00:09:40]}
Nb6 {[%clk 00:07:15]} 44. Bg8 {[%clk 00:20:40]} {[%emt 00:03:25]} Nc8 {[%clk
00:03:35]} {[%emt 00:04:10]} 45. Bf7 {[%clk 00:16:01]} {[%emt 00:05:09]} Ne7
{[%clk 00:03:27]} {[%emt 00:00:38]} 46. Ke4 {[%clk 00:15:23]} {[%emt 00:01:08]}
Kc5 {[%clk 00:02:41]} {[%emt 00:01:16]} 47. Be8 {[%clk 00:15:30]} {[%emt
00:00:23]} Nd5 {[%clk 00:01:59]} {[%emt 00:01:12]} 48. Bc6 {[%clk 00:15:29]}
{[%emt 00:00:31]} Nc3+ {[%clk 00:00:33]} {[%emt 00:01:55]} 49. Kxf4 {[%clk
00:15:46]} {[%emt 00:00:14]} Nd1 {[%clk 00:00:32]} {[%emt 00:00:32]} 50. Kf3
{[%clk 00:11:25]} {[%emt 00:04:50]} Kd6 {[%clk 00:00:32]} {[%emt 00:00:31]} 51.
Ke2 {[%clk 00:10:31]} {[%emt 00:01:24]} Nc3+ {[%clk 00:00:37]} {[%emt
00:00:24]} 52. Kd2 {[%clk 00:10:24]} {[%emt 00:00:37]} Na4 {[%clk 00:01:00]}
{[%emt 00:00:07]} 53. Kd3 {[%clk 00:08:22]} {[%emt 00:02:34]} Ke5 {[%clk
00:00:35]} {[%emt 00:00:55]} 54. Ke3 {[%clk 00:07:42]} {[%emt 00:01:10]} Kf5
{[%clk 00:00:31]} {[%emt 00:00:34]} 55. Kf3 {[%clk 00:07:01]} {[%emt 00:01:11]}
Nb6 {[%clk 00:00:31]} {[%emt 00:00:31]} 56. Ke3 {[%clk 00:05:53]} {[%emt
00:01:37]} Ke5 {[%clk 00:00:43]} {[%emt 00:00:18]} 57. f4+ {[%clk 00:04:21]}
{[%emt 00:02:02]} Kf5 {[%clk 00:00:35]} {[%emt 00:00:38]} 58. Be4+ {[%clk
00:04:10]} {[%emt 00:00:41]} Ke6 {[%clk 00:01:02]} {[%emt 00:00:03]} 59. f5+
{[%clk 00:03:36]} {[%emt 00:01:04]} Ke5 {[%clk 00:01:22]} {[%emt 00:00:10]} 60.
Kf3 {[%clk 00:03:02]} {[%emt 00:01:04]} Nc4 {[%clk 00:00:42]} {[%emt 00:01:10]}
61. Bd3 {[%clk 00:02:35]} {[%emt 00:00:57]} Nd6 {[%clk 00:00:31]} {[%emt
00:00:41]} 62. b6 {[%clk 00:02:00]} {[%emt 00:01:05]} Kd5 {[%clk 00:00:31]}
{[%emt 00:00:30]} 63. Be4+ {[%clk 00:01:54]} {[%emt 00:00:37]} Ke5 {[%clk
00:00:33]} {[%emt 00:00:27]} 64. Bd3 {[%clk 00:01:04]} {[%emt 00:01:21]} Kd4
{[%clk 00:00:32]} {[%emt 00:00:31]} 65. Ba6 {[%clk 00:00:49]} {[%emt 00:00:45]}
Ke5 {[%clk 00:00:40]} {[%emt 00:00:22]} 66. Kg4 {[%clk 00:01:08]} {[%emt
00:00:11]} Ke4 {[%clk 00:00:31]} {[%emt 00:00:38]} 67. b7 {[%clk 00:01:29]}
{[%emt 00:00:10]} Nxb7 {[%clk 00:00:33]} {[%emt 00:00:28]} 68. Bxb7+ {[%clk
00:01:54]} {[%emt 00:00:04]} Kd4 {[%emt 00:00:32]} 1-0

[Event "NJSK 2023 Jeugd A"]
[Site "Almelo, Netherlands"]
[Date "2023.05.02"]
[Round "3.8"]
[White "Knol, Daniel"]
[Black "Van Rootselaar, Rik"]
[Result "1/2-1/2"]
[TimeControl "90min/40moves + 30min + 30sec/move"]
[WhiteElo "1819"]
[BlackElo "1812"]

1. e4 {[%clk 01:30:58]} {[%emt 00:00:01]} c5 {[%clk 01:30:55]} {[%emt
00:00:05]} 2. c3 {[%clk 01:31:26]} {[%emt 00:00:02]} d5 {[%clk 01:31:06]}
{[%emt 00:00:19]} 3. exd5 {[%clk 01:31:49]} {[%emt 00:00:07]} Qxd5 {[%clk
01:31:33]} {[%emt 00:00:03]} 4. d4 {[%clk 01:32:13]} {[%emt 00:00:07]} Nc6
{[%clk 01:31:24]} {[%emt 00:00:38]} 5. Nf3 {[%clk 01:32:38]} {[%emt 00:00:04]}
Nf6 {[%clk 01:31:29]} {[%emt 00:00:26]} 6. Be3 {[%clk 01:32:25]} {[%emt
00:00:43]} cxd4 {[%clk 01:27:11]} {[%emt 00:04:48]} 7. cxd4 {[%clk 01:32:50]}
{[%emt 00:00:05]} e6 {[%clk 01:27:09]} {[%emt 00:00:32]} 8. Nc3 {[%clk
01:33:14]} {[%emt 00:00:06]} Qd8 {[%clk 01:27:06]} {[%emt 00:00:32]} 9. Bc4
{[%clk 01:32:05]} {[%emt 00:01:40]} Be7 {[%clk 01:26:43]} {[%emt 00:00:53]} 10.
O-O {[%clk 01:32:28]} {[%emt 00:00:07]} O-O {[%clk 01:26:52]} {[%emt 00:00:20]}
11. a3 {[%clk 01:19:23]} {[%emt 00:13:36]} a6 {[%clk 01:25:11]} {[%emt
00:02:10]} 12. d5 {[%clk 01:04:23]} {[%emt 00:15:31]} exd5 {[%clk 01:24:15]}
{[%emt 00:01:26]} 13. Nxd5 {[%clk 01:04:46]} {[%emt 00:00:08]} Nxd5 {[%clk
01:23:25]} {[%emt 00:01:19]} 14. Bxd5 {[%clk 01:05:06]} {[%emt 00:00:09]} Bf6
{[%clk 01:21:16]} {[%emt 00:02:39]} 15. Qb3 {[%clk 01:00:57]} {[%emt 00:04:39]}
Na5 {[%clk 01:01:28]} {[%emt 00:20:19]} 16. Qa2 {[%clk 01:00:00]} {[%emt
00:01:28]} Bf5 {[%clk 00:57:26]} {[%emt 00:04:31]} 17. Rad1 {[%clk 00:54:00]}
{[%emt 00:06:30]} Qd7 {[%clk 00:55:14]} {[%emt 00:02:42]} 18. Bg5 {[%clk
00:38:18]} {[%emt 00:16:12]} Rad8 {[%clk 00:48:18]} {[%emt 00:07:26]} 19. Ne5
{[%clk 00:28:40]} {[%emt 00:10:09]} Qe7 {[%clk 00:35:29]} {[%emt 00:13:19]} 20.
Bxf6 {[%clk 00:28:41]} {[%emt 00:00:28]} Qxf6 {[%clk 00:31:42]} {[%emt
00:04:17]} 21. Nxf7 {[%clk 00:26:10]} {[%emt 00:03:01]} Rb8 {[%clk 00:31:57]}
{[%emt 00:00:15]} 22. Nh6+ {[%clk 00:22:57]} {[%emt 00:03:43]} Kh8 {[%clk
00:32:06]} {[%emt 00:00:21]} 23. Nf7+ {[%clk 00:23:25]} {[%emt 00:00:02]} Kg8
{[%clk 00:32:17]} {[%emt 00:00:19]} 24. Nh6+ {[%clk 00:23:50]} {[%emt
00:00:05]} Kh8 {[%clk 00:32:40]} {[%emt 00:00:07]} 25. Nf7+ {[%clk 00:24:13]}
{[%emt 00:00:06]} 1/2-1/2

[Event "NJSK 2023 Jeugd A"]
[Site "Almelo, Netherlands"]
[Date "2023.05.03"]
[Round "4.1"]
[White "Van der Hagen, Loek"]
[Black "Wierenga, Jael"]
[Result "1-0"]
[TimeControl "90min/40moves + 30min + 30sec/move"]
[WhiteElo "2273"]
[BlackElo "1772"]

1. e4 {[%clk 01:30:58]} {[%emt 00:00:02]} c5 {[%clk 01:30:46]} {[%emt
00:00:15]} 2. Nc3 {[%clk 01:31:16]} {[%emt 00:00:12]} d6 {[%clk 01:31:02]}
{[%emt 00:00:13]} 3. d4 {[%clk 01:31:39]} {[%emt 00:00:08]} cxd4 {[%clk
01:31:13]} {[%emt 00:00:19]} 4. Qxd4 {[%clk 01:32:03]} {[%emt 00:00:06]} Nc6
{[%clk 01:31:02]} {[%emt 00:00:41]} 5. Qd2 {[%clk 01:32:27]} {[%emt 00:00:06]}
e6 {[%clk 01:30:01]} {[%emt 00:01:31]} 6. b3 {[%clk 01:32:41]} {[%emt
00:00:16]} Nf6 {[%clk 01:29:20]} {[%emt 00:01:11]} 7. Bb2 {[%clk 01:33:05]}
{[%emt 00:00:06]} Be7 {[%clk 01:28:52]} {[%emt 00:00:58]} 8. O-O-O {[%clk
01:33:26]} {[%emt 00:00:09]} Qa5 {[%clk 01:26:20]} {[%emt 00:03:03]} 9. Kb1
{[%clk 01:33:03]} {[%emt 00:00:53]} O-O {[%clk 01:24:34]} {[%emt 00:02:16]} 10.
f3 {[%clk 01:30:56]} {[%emt 00:02:37]} b6 {[%clk 01:18:51]} {[%emt 00:06:14]}
11. g4 {[%clk 01:12:42]} {[%emt 00:18:43]} Bb7 {[%clk 01:12:02]} {[%emt
00:07:18]} 12. a3 {[%clk 00:56:01]} {[%emt 00:17:11]} d5 {[%clk 00:34:52]}
{[%emt 00:37:40]} 13. g5 {[%clk 00:53:35]} {[%emt 00:02:56]} Nh5 {[%clk
00:29:19]} {[%emt 00:06:03]} 14. exd5 {[%clk 00:53:48]} {[%emt 00:00:17]} Rfd8
{[%clk 00:28:04]} {[%emt 00:01:45]} 15. Qc1 {[%clk 00:49:40]} {[%emt 00:04:37]}
exd5 {[%clk 00:27:10]} {[%emt 00:01:24]} 16. b4 {[%clk 00:47:46]} {[%emt
00:02:25]} Bxb4 {[%clk 00:24:52]} {[%emt 00:02:48]} 17. axb4 {[%clk 00:48:01]}
{[%emt 00:00:16]} Nxb4 {[%clk 00:25:13]} {[%emt 00:00:08]} 18. Rd4 {[%clk
00:46:36]} {[%emt 00:01:54]} Rac8 {[%clk 00:24:57]} {[%emt 00:00:47]} 19. Qd2
{[%clk 00:45:24]} {[%emt 00:01:43]} g6 {[%clk 00:20:52]} {[%emt 00:04:35]} 20.
Nge2 {[%clk 00:44:48]} {[%emt 00:01:06]} Ng7 {[%clk 00:20:08]} {[%emt
00:01:14]} 21. Nc1 {[%clk 00:43:03]} {[%emt 00:02:14]} Qc5 {[%clk 00:14:35]}
{[%emt 00:06:02]} 22. Nb3 {[%clk 00:37:52]} {[%emt 00:05:41]} Qe7 {[%clk
00:13:55]} {[%emt 00:01:10]} 23. Bh3 {[%clk 00:35:30]} {[%emt 00:02:53]} Ne6
{[%clk 00:12:01]} {[%emt 00:02:23]} 24. Re1 {[%clk 00:35:00]} {[%emt 00:01:00]}
a5 {[%clk 00:06:20]} {[%emt 00:06:11]} 25. Rh4 {[%clk 00:23:51]} {[%emt
00:11:39]} Rc4 {[%clk 00:05:08]} {[%emt 00:01:43]} 26. Bxe6 {[%clk 00:11:41]}
{[%emt 00:12:41]} Rxh4 {[%clk 00:04:58]} {[%emt 00:00:40]} 27. Bg4 {[%clk
00:10:58]} {[%emt 00:01:12]} Qc7 {[%clk 00:04:35]} {[%emt 00:00:53]} 28. Re2
{[%clk 00:06:57]} {[%emt 00:04:32]} Bc6 {[%clk 00:01:49]} {[%emt 00:03:16]} 29.
Qd4 {[%clk 00:06:00]} {[%emt 00:01:27]} Rxh2 {[%clk 00:01:16]} {[%emt
00:01:03]} 30. Nb5 {[%clk 00:06:04]} {[%emt 00:00:26]} Rh1+ {[%clk 00:01:06]}
{[%emt 00:00:40]} 31. Nc1 {[%clk 00:06:32]} Rxc1+ {[%clk 00:01:11]} {[%emt
00:00:25]} 32. Kxc1 {[%clk 00:06:43]} {[%emt 00:00:20]} Nd3+ {[%clk 00:00:41]}
{[%emt 00:01:00]} 33. cxd3 {[%clk 00:06:52]} {[%emt 00:00:22]} Bxb5+ {[%clk
00:01:06]} {[%emt 00:00:05]} 34. Rc2 {[%clk 00:07:17]} {[%emt 00:00:05]} 1-0

[Event "NJSK 2023 Jeugd A"]
[Site "Almelo, Netherlands"]
[Date "2023.05.03"]
[Round "4.2"]
[White "De Winter, Arthur"]
[Black "Van Kuijk, Vadim"]
[Result "1-0"]
[TimeControl "90min/40moves + 30min + 30sec/move"]
[WhiteElo "2374"]
[BlackElo "1968"]

1. e4 {[%clk 01:30:56]} {[%emt 00:00:02]} c6 {[%clk 01:24:50]} {[%emt
00:06:11]} 2. d4 {[%clk 01:31:22]} {[%emt 00:00:04]} d5 {[%clk 01:25:09]}
{[%emt 00:00:10]} 3. e5 {[%clk 01:31:50]} {[%emt 00:00:03]} Bf5 {[%clk
01:25:32]} {[%emt 00:00:07]} 4. h4 {[%clk 01:32:17]} {[%emt 00:00:03]} h5
{[%clk 01:25:55]} {[%emt 00:00:07]} 5. Bd3 {[%clk 01:32:45]} {[%emt 00:00:02]}
Bxd3 {[%clk 01:26:08]} {[%emt 00:00:17]} 6. Qxd3 {[%clk 01:33:11]} {[%emt
00:00:03]} Qa5+ {[%clk 01:26:31]} {[%emt 00:00:08]} 7. b4 {[%clk 01:33:39]}
{[%emt 00:00:03]} Qxb4+ {[%clk 01:26:39]} {[%emt 00:00:21]} 8. Nd2 {[%clk
01:34:05]} {[%emt 00:00:04]} e6 {[%clk 01:26:59]} {[%emt 00:00:10]} 9. Rb1
{[%clk 01:34:32]} {[%emt 00:00:03]} Qe7 {[%clk 01:27:23]} {[%emt 00:00:06]} 10.
Ne2 {[%clk 01:34:58]} {[%emt 00:00:04]} Nh6 {[%clk 01:19:11]} {[%emt 00:08:42]}
11. Nf3 {[%clk 01:35:23]} {[%emt 00:00:05]} Nf5 {[%clk 01:18:26]} {[%emt
00:01:15]} 12. Ng3 {[%clk 01:35:45]} {[%emt 00:00:09]} Nxg3 {[%clk 01:14:16]}
{[%emt 00:04:40]} 13. fxg3 {[%clk 01:36:11]} {[%emt 00:00:03]} f6 {[%clk
01:12:03]} {[%emt 00:02:43]} 14. O-O {[%clk 01:30:03]} {[%emt 00:06:38]} c5
{[%clk 00:56:37]} {[%emt 00:15:56]} 15. Ng5 {[%clk 01:09:11]} {[%emt 00:21:22]}
f5 {[%clk 00:48:48]} {[%emt 00:08:19]} 16. c4 {[%clk 01:09:11]} {[%emt
00:00:31]} Qd7 {[%clk 00:47:05]} {[%emt 00:02:13]} 17. cxd5 {[%clk 00:53:37]}
{[%emt 00:16:04]} Qxd5 {[%clk 00:46:46]} {[%emt 00:00:49]} 18. Nxe6 {[%clk
00:53:32]} {[%emt 00:00:35]} Qxe6 {[%clk 00:46:01]} {[%emt 00:01:14]} 19. d5
{[%clk 00:54:00]} {[%emt 00:00:03]} Qa6 {[%clk 00:35:08]} {[%emt 00:11:23]} 20.
Qxf5 {[%clk 00:53:58]} {[%emt 00:00:31]} Nd7 {[%clk 00:34:41]} {[%emt
00:00:58]} 21. Bg5 {[%clk 00:53:21]} {[%emt 00:01:07]} 1-0